fUSD/lending_fUSD_20250623
["ID","MTS","AMOUNT","RATE_DAILY","PERIOD"]
[367081136,1750651855932,-490.0,0.00032876,7]
[367081138,1750651855941,-5691.77,0.00032876,7]
[367081140,1750651855951,-490.0,0.00032876,7]
[367081142,1750651855961,-490.0,0.00032876,7]
[367081144,1750651855970,-161.254702,0.00032876,7]
[367081146,1750651855979,-2227.47,0.00032876,7]
[367081148,1750651855988,-490.0,0.00032876,7]
[367081150,1750651855997,-581.06,0.00032876,7]
[367081152,1750651856007,-490.0,0.00032876,7]
[367081154,1750651856016,-2111.75,0.00032876,7]
[367081156,1750651856026,-3603.18,0.00032876,7]
[367081158,1750651856035,-490.0,0.00032876,7]
[367081160,1750651856044,-490.0,0.00032876,7]
[367081162,1750651856054,-490.0,0.00032876,7]
[367081164,1750651856067,-490.0,0.00032876,7]
[367081167,1750651856076,-1221.8,0.00032876,7]
[367081169,1750651856086,-490.0,0.00032876,7]
[367081171,1750651856095,-914.86,0.00032876,7]
[367081173,1750651856105,-500.0,0.00032876,7]
[367081175,1750651856114,-500.0,0.00032876,7]
[367081177,1750651856123,-500.0,0.00032876,7]
[367081179,1750651856133,-812.95,0.00032876,7]
[367081181,1750651856142,-490.0,0.00032876,7]
[367081183,1750651856152,-490.0,0.00032876,7]
[367081185,1750651856161,-1685.75,0.00032876,7]
[367081186,1750651856170,-490.0,0.00032876,7]
[367081188,1750651856179,-490.0,0.00032876,7]
[367081191,1750651856189,-816.99,0.00032876,7]
[367081193,1750651856198,-1588.11,0.00032876,7]
[367081195,1750651856207,-7811.75,0.00032876,7]
[367081197,1750651856217,-490.0,0.00032876,7]
[367081199,1750651856226,-490.0,0.00032876,7]
[367081201,1750651856236,-1760.98,0.00032876,7]
[367081203,1750651856245,-510.45,0.00032876,7]
[367081205,1750651856255,-490.0,0.00032876,7]
[367081207,1750651856264,-490.0,0.00032876,7]
[367081209,1750651856274,-490.0,0.00032876,7]
[367081211,1750651856283,-490.0,0.00032876,7]
[367081213,1750651856292,-274.920312,0.00032876,7]
[367081215,1750651856302,-490.0,0.00032876,7]
[367081217,1750651856311,-3293.31,0.00032876,7]
[367081219,1750651856319,-2208.73,0.00032876,7]
[367081220,1750651856329,-1923.63,0.00032876,7]
[367081222,1750651856338,-490.0,0.00032876,7]
[367081225,1750651856347,-151.0,0.00032876,7]
[367081226,1750651856357,-159.411204,0.00032876,7]
[367081228,1750651856366,-844.74,0.00032876,7]
[367081230,1750651856375,-490.0,0.00032876,7]
[367081232,1750651856384,-507.6406775,0.00032876,7]
[367081234,1750651856393,-1717.67,0.00032876,7]
[367081237,1750651856403,-490.0,0.00032876,7]
[367081239,1750651856412,-1500.04,0.00032876,7]
[367081241,1750651856421,-559.87,0.00032876,7]
[367081242,1750651856430,-490.0,0.00032876,7]
[367081245,1750651856440,-490.0,0.00032876,7]
[367081246,1750651856449,-490.0,0.00032876,7]
[367081248,1750651856458,-1386.66,0.00032876,7]
[367081250,1750651856467,-687.72,0.00032876,7]
[367081252,1750651856477,-490.0,0.00032876,7]
[367081254,1750651856486,-490.0,0.00032876,7]
[367081256,1750651856496,-490.0,0.00032876,7]
[367081259,1750651856505,-2004.11,0.00032876,7]
[367081261,1750651856515,-3235.4,0.00032876,7]
[367081263,1750651856524,-1162.79,0.00032876,7]
[367081264,1750651856533,-1134.9,0.00032876,7]
[367081266,1750651856543,-1902.82,0.00032876,7]
[367081268,1750651856552,-490.0,0.00032876,7]
[367081270,1750651856562,-490.0,0.00032876,7]
[367081272,1750651856572,-490.0,0.00032876,7]
[367081274,1750651856581,-490.0,0.00032876,7]
[367081276,1750651856591,-156.566577,0.00032876,7]
[367081278,1750651856600,-730.24,0.00032876,7]
[367081281,1750651856610,-911.13,0.00032876,7]
[367081282,1750651856619,-1813.5,0.00032876,7]
[367081284,1750651856629,-490.0,0.00032876,7]
[367081286,1750651856639,-490.0,0.00032876,7]
[367081288,1750651856647,-1589.43,0.00032876,7]
[367081290,1750651856656,-2873.68,0.00032876,7]
[367081292,1750651856666,-658.7,0.00032876,7]
[367081293,1750651856675,-490.0,0.00032876,7]
[367081294,1750651856684,-490.0,0.00032876,7]
[367081295,1750651856694,-490.0,0.00032876,7]
[367081296,1750651856704,-500.0,0.00032876,2]
[367081297,1750651856713,-500.0,0.00032876,2]
[367081298,1750651856723,-490.0,0.00032876,7]
[367081299,1750651856733,-902.62,0.00032876,7]
[367081300,1750651856742,-4693.52,0.00032876,7]
[367081301,1750651856752,-500.0,0.00032876,2]
[367081302,1750651856761,-490.0,0.00032876,7]
[367081303,1750651856771,-500.0,0.00032876,2]
[367081304,1750651856780,-500.0,0.00032876,2]
[367081305,1750651856790,-500.0,0.00032876,2]
[367081306,1750651856799,-1291.3,0.00032876,7]
[367081307,1750651856808,-500.0,0.00032876,2]
[367081308,1750651856818,-500.0,0.00032876,2]
[367081309,1750651856828,-500.0,0.00032876,2]
[367081310,1750651856837,-500.0,0.00032876,2]
[367081311,1750651856847,-4132.69,0.00032876,7]
[367081312,1750651856856,-490.0,0.00032876,7]
[367081313,1750651856865,-901.29,0.00032876,7]
[367081314,1750651856875,-420.0,0.00032876,7]
[367081315,1750651856884,-993.64,0.00032876,7]
[367081316,1750651856894,-1151.59,0.00032876,2]
[367081317,1750651856903,-490.0,0.00032876,7]
[367081318,1750651856913,-490.0,0.00032876,7]
[367081319,1750651856922,-490.0,0.00032876,7]
[367081320,1750651856932,-490.0,0.00032876,7]
[367081321,1750651856941,-712.25,0.00032876,7]
[367081322,1750651856950,-1490.22,0.00032876,7]
[367081323,1750651856959,-722.74,0.00032876,7]
[367081324,1750651856969,-490.0,0.00032876,7]
[367081325,1750651856978,-490.0,0.00032876,7]
[367081326,1750651856987,-490.0,0.00032876,7]
[367081327,1750651856996,-490.0,0.00032876,7]
[367081328,1750651857006,-490.0,0.00032876,7]
[367081329,1750651857016,-490.0,0.00032876,7]
[367081330,1750651857026,-2643.09893881,0.00032889,2]
[367081331,1750651857035,-1300.0,0.000329,12]
[367081332,1750651857046,-200.0,0.000329,12]
[367081333,1750651857059,-58503.27,0.000329,14]
[367081334,1750651857069,-165.92,0.00032904,30]
[367081335,1750651857078,-2420.52373217,0.00032951,2]
[367081336,1750651857087,-2643.09893881,0.00032951,2]
[367081337,1750651857097,-2236.29657091,0.00032953,30]
[367081338,1750651857106,-260.0,0.0003297,120]
[367081339,1750651857116,-748.2323829,0.00032979,2]
[367081340,1750651857125,-260.0,0.0003298,120]
[367081341,1750651857135,-826.97,0.00032989,7]
[367081342,1750651857146,-571.26,0.00032989,7]
[367081343,1750651857155,-500.0,0.00032989,7]
[367081344,1750651857165,-500.0,0.00032989,7]
[367081345,1750651857175,-260.0,0.0003299,120]
[367081346,1750651857184,-500.999829,0.0003299,7]
[367081347,1750651857194,-825.186279,0.0003299,7]
[367081348,1750651857204,-825.186279,0.0003299,7]
[367081349,1750651857214,-157.587422,0.0003299,7]
[367081350,1750651857225,-207.76947,0.0003299,7]
[367081351,1750651857236,-157.587422,0.0003299,7]
[367081352,1750651857245,-207.76947,0.0003299,7]
[367081353,1750651857254,-403.983208,0.0003299,7]
[367081354,1750651857264,-151.0,0.0003299,7]
[367081355,1750651857273,-403.983208,0.0003299,7]
[367081356,1750651857283,-151.0,0.0003299,7]
[367081357,1750651857292,-151.0,0.0003299,7]
[367081358,1750651857302,-72852.9355302,0.0003299,2]
[367081359,1750651857311,-826.97,0.00032999,7]
[367081360,1750651857321,-571.26,0.00032999,7]
[367081361,1750651857330,-500.0,0.00032999,7]
[367081362,1750651857340,-500.0,0.00032999,7]
[367081363,1750651857350,-150.0,0.00032999,3]
[367081364,1750651857360,-500.0,0.00032999,2]
[367081365,1750651857369,-220649.52018413,0.00033,30]
[367081366,1750651857379,-202.993277,0.00033,7]
[367081367,1750651857389,-151.0,0.00033,7]
[367081368,1750651857398,-151.0,0.00033,7]
[367081369,1750651857408,-151.0,0.00033,7]
[367081370,1750651857417,-290.567398,0.00033,7]
[367081371,1750651857427,-500.999829,0.00033,7]
[367081372,1750651857438,-825.186279,0.00033,7]
[367081373,1750651857447,-825.186279,0.00033,7]
[367081374,1750651857457,-157.587422,0.00033,7]
[367081375,1750651857466,-207.76947,0.00033,7]
[367081376,1750651857476,-157.587422,0.00033,7]
[367081377,1750651857485,-207.76947,0.00033,7]
[367081378,1750651857495,-403.983208,0.00033,7]
[367081379,1750651857504,-151.0,0.00033,7]
[367081380,1750651857514,-403.983208,0.00033,7]
[367081381,1750651857524,-151.0,0.00033,7]
[367081382,1750651857534,-151.0,0.00033,7]
[367081383,1750651857543,-187.002381,0.00033,7]
[367081384,1750651857553,-187.002381,0.00033,7]
[367081385,1750651857563,-1119.709815,0.00033,7]
[367081386,1750651857572,-1176.24948,0.00033,7]
[367081387,1750651857582,-1176.24948,0.00033,7]
[367081388,1750651857593,-1119.709815,0.00033,7]
[367081389,1750651857602,-426.42331311,0.00033003,15]
[367081390,1750651857612,-2643.09893881,0.00033013,2]
[367081391,1750651857622,-162.49570099,0.00033042,2]
[367081392,1750651857632,-2420.52373217,0.00033043,2]
[367081393,1750651857641,-896.56704757,0.0003305,2]
[367081394,1750651857650,-176.85024721,0.0003305,6]
[367081395,1750651857660,-11712.23696933,0.0003305,2]
[367081396,1750651857669,-312.58039971,0.0003305,2]
[367081397,1750651857679,-500.0,0.00033054,7]
[367081398,1750651857689,-654.69,0.00033054,2]
[367081399,1750651857699,-500.0,0.00033054,7]
[367081400,1750651857709,-500.0,0.00033054,7]
[367081401,1750651857719,-500.0,0.00033054,7]
[367081402,1750651857728,-500.0,0.00033054,7]
[367081403,1750651857738,-500.0,0.00033054,7]
[367081404,1750651857748,-500.0,0.00033054,7]
[367081405,1750651857944,-500.0,0.00033055,7]
[367081406,1750651857967,-500.0,0.00033055,7]
[367081407,1750651857976,-1024.9,0.00033055,7]
[367081408,1750651857986,-500.0,0.00033064,7]
[367081409,1750651857995,-151.0,0.00033064,7]
[367081410,1750651858005,-151.0,0.00033064,7]
[367081411,1750651858014,-500.0,0.00033065,7]
[367081412,1750651858023,-197.8,0.00033065,2]
[367081413,1750651858033,-654.69,0.00033065,2]
[367081414,1750651858042,-500.0,0.00033065,7]
[367081415,1750651858052,-500.0,0.00033065,7]
[367081416,1750651858065,-500.0,0.00033065,7]
[367081417,1750651858074,-500.0,0.00033065,7]
[367081418,1750651858084,-500.0,0.00033065,7]
[367081419,1750651858093,-500.0,0.00033065,7]
[367081420,1750651858103,-500.0,0.00033068,7]
[367081421,1750651858112,-500.0,0.00033068,7]
[367081422,1750651858122,-1024.9,0.00033068,7]
[367081423,1750651858131,-151.0,0.00033074,7]
[367081424,1750651858142,-500.0,0.00033075,7]
[367081425,1750651858152,-654.69,0.00033075,2]
[367081426,1750651858161,-500.0,0.00033075,7]
[367081427,1750651858171,-500.0,0.00033075,7]
[367081428,1750651858181,-500.0,0.00033075,7]
[367081429,1750651858190,-500.0,0.00033075,7]
[367081430,1750651858200,-500.0,0.00033075,7]
[367081431,1750651858209,-500.0,0.00033075,7]
[367081432,1750651858218,-2643.09893881,0.00033076,2]
[367081433,1750651858228,-500.0,0.00033078,7]
[367081434,1750651858237,-500.0,0.00033078,7]
[367081435,1750651858246,-1024.9,0.00033078,7]
[367081436,1750651858255,-654.69,0.00033088,2]
[367081437,1750651858264,-500.0,0.00033088,7]
[367081438,1750651858274,-500.0,0.00033088,7]
[367081439,1750651858283,-500.0,0.00033088,7]
[367081440,1750651858293,-500.0,0.00033088,7]
[367081441,1750651858303,-500.0,0.00033088,7]
[367081442,1750651858312,-500.0,0.00033088,7]
[367081443,1750651858321,-1494.0,0.000331,7]
[367081444,1750651858331,-571.26,0.00033129,7]
[367081445,1750651858340,-500.0,0.00033129,7]
[367081446,1750651858349,-500.0,0.00033129,7]
[367081447,1750651858359,-247.26136862,0.0003313,2]
[367081448,1750651858368,-2420.52373217,0.00033135,2]
[367081449,1750651858377,-2643.09893881,0.00033138,2]
[367081450,1750651858387,-500.0,0.00033138,7]
[367081451,1750651858396,-403.983208,0.00033139,7]
[367081452,1750651858406,-151.0,0.00033139,7]
[367081453,1750651858415,-403.983208,0.00033139,7]
[367081454,1750651858425,-151.0,0.00033139,7]
[367081455,1750651858434,-826.97,0.00033139,7]
[367081456,1750651858443,-151.0,0.00033139,7]
[367081457,1750651858453,-500.0,0.00033139,2]
[367081458,1750651858462,-151.0,0.0003314,7]
[367081459,1750651858472,-151.0,0.0003314,7]
[367081460,1750651858482,-151.0,0.0003314,7]
[367081461,1750651858492,-151.0,0.0003314,7]
[367081462,1750651858502,-156.673229,0.0003314,7]
[367081463,1750651858511,-151.0,0.0003314,7]
[367081464,1750651858521,-151.0,0.0003314,7]
[367081465,1750651858531,-151.0,0.0003314,7]
[367081466,1750651858541,-151.0,0.0003314,7]
[367081467,1750651858551,-222.65,0.0003314,7]
[367081468,1750651858561,-500.0,0.0003314,7]
[367081469,1750651858571,-500.999829,0.0003314,7]
[367081470,1750651858581,-500.999829,0.0003314,7]
[367081471,1750651858590,-825.186279,0.0003314,7]
[367081472,1750651858600,-825.186279,0.0003314,7]
[367081473,1750651858609,-825.186279,0.0003314,7]
[367081474,1750651858619,-825.186279,0.0003314,7]
[367081475,1750651858629,-157.587422,0.0003314,7]
[367081476,1750651858638,-157.587422,0.0003314,7]
[367081477,1750651858648,-207.76947,0.0003314,7]
[367081478,1750651858658,-207.76947,0.0003314,7]
[367081479,1750651858668,-157.587422,0.0003314,7]
[367081480,1750651858677,-157.587422,0.0003314,7]
[367081481,1750651858687,-207.76947,0.0003314,7]
[367081482,1750651858696,-207.76947,0.0003314,7]
[367081483,1750651858706,-403.983208,0.0003314,7]
[367081484,1750651858715,-151.0,0.0003314,7]
[367081485,1750651858724,-403.983208,0.0003314,7]
[367081486,1750651858734,-157.152656,0.0003314,7]
[367081487,1750651858744,-151.0,0.0003314,7]
[367081488,1750651858755,-571.26,0.0003314,7]
[367081489,1750651858764,-1024.9,0.0003314,7]
[367081490,1750651858773,-500.0,0.0003314,7]
[367081491,1750651858783,-500.0,0.0003314,7]
[367081492,1750651858792,-154.11890497,0.0003314,2]
[367081493,1750651858802,-826.97,0.00033142,7]
[367081494,1750651858811,-500.999829,0.00033143,7]
[367081495,1750651858821,-825.186279,0.00033143,7]
[367081496,1750651858831,-825.186279,0.00033143,7]
[367081497,1750651858840,-157.587422,0.00033143,7]
[367081498,1750651858849,-207.76947,0.00033143,7]
[367081499,1750651858859,-157.587422,0.00033143,7]
[367081500,1750651858869,-207.76947,0.00033143,7]
[367081501,1750651858878,-403.983208,0.00033143,7]
[367081502,1750651858887,-151.0,0.00033143,7]
[367081503,1750651858896,-403.983204,0.00033143,7]
[367081504,1750651858905,-151.0,0.00033143,7]
[367081505,1750651858915,-500.0,0.00033148,2]
[367081506,1750651858924,-666.0,0.00033149,10]
[367081507,1750651858934,-300.0,0.00033149,10]
[367081508,1750651858944,-300.0,0.00033149,10]
[367081509,1750651858953,-300.0,0.00033149,10]
[367081510,1750651858963,-500.0,0.00033149,7]
[367081511,1750651858972,-500.0,0.00033149,7]
[367081512,1750651858981,-500.0,0.00033149,7]
[367081513,1750651858990,-654.69,0.00033149,2]
[367081514,1750651858999,-654.69,0.00033149,2]
[367081515,1750651859009,-500.0,0.00033149,7]
[367081516,1750651859019,-500.0,0.00033149,7]
[367081517,1750651859028,-500.0,0.00033149,7]
[367081518,1750651859037,-500.0,0.00033149,7]
[367081519,1750651859047,-504.79444097,0.00033149,7]
[367081520,1750651859058,-500.0,0.00033149,7]
[367081521,1750651859068,-500.0,0.00033149,7]
[367081522,1750651859077,-826.97,0.00033149,7]
[367081523,1750651859086,-826.97,0.00033149,7]
[367081524,1750651859096,-826.97,0.00033149,7]
[367081525,1750651859106,-826.97,0.00033149,7]
[367081526,1750651859115,-826.97,0.00033149,7]
[367081527,1750651859124,-571.26,0.00033149,7]
[367081528,1750651859133,-571.26,0.00033149,7]
[367081529,1750651859143,-571.26,0.00033149,7]
[367081530,1750651859152,-571.26,0.00033149,7]
[367081531,1750651859162,-500.0,0.00033149,7]
[367081532,1750651859171,-500.0,0.00033149,7]
[367081533,1750651859181,-151.0,0.00033149,7]
[367081534,1750651859190,-151.0,0.00033149,7]
[367081535,1750651859200,-151.0,0.00033149,7]
[367081536,1750651859210,-151.0,0.00033149,7]
[367081537,1750651859220,-154.54683743,0.00033149,7]
[367081538,1750651859230,-200.0,0.00033149,7]
[367081539,1750651859240,-7142.856,0.00033149,7]
[367081540,1750651859249,-151.87550536,0.00033149,7]
[367081541,1750651859259,-151.0,0.00033149,7]
[367081542,1750651859268,-200.0,0.00033149,7]
[367081543,1750651859278,-7407.141672,0.00033149,7]
[367081544,1750651859287,-156.587,0.00033149,7]
[367081545,1750651859297,-232.75766949,0.00033149,7]
[367081546,1750651859306,-200.0,0.00033149,7]
[367081547,1750651859315,-7681.20591386,0.00033149,7]
[367081548,1750651859325,-162.380719,0.00033149,7]
[367081549,1750651859334,-200.85245147,0.00033149,7]
[367081550,1750651859343,-7965.41053268,0.00033149,7]
[367081551,1750651859353,-168.3888056,0.00033149,7]
[367081552,1750651859362,-151.0,0.00033149,7]
[367081553,1750651859372,-1000.0,0.00033149,7]
[367081554,1750651859382,-174.61919141,0.00033149,7]
[367081555,1750651859391,-151.0,0.00033149,7]
[367081556,1750651859401,-1000.0,0.00033149,7]
[367081557,1750651859412,-8260.13072239,0.00033149,7]
[367081558,1750651859422,-181.08010149,0.00033149,7]
[367081559,1750651859431,-151.0,0.00033149,7]
[367081560,1750651859441,-1000.0,0.00033149,7]
[367081561,1750651859451,-8565.75555911,0.00033149,7]
[367081562,1750651859461,-187.78006525,0.00033149,7]
[367081563,1750651859469,-1000.0,0.00033149,7]
[367081564,1750651859479,-8882.6885148,0.00033149,7]
[367081565,1750651859488,-153.06184516,0.00033149,7]
[367081566,1750651859498,-194.72792766,0.00033149,7]
[367081567,1750651859507,-9211.34798985,0.00033149,7]
[367081568,1750651859517,-1000.0,0.00033149,7]
[367081569,1750651859526,-151.0,0.00033149,7]
[367081570,1750651859536,-9552.16786547,0.00033149,7]
[367081571,1750651859546,-270.15405796,0.00033149,7]
[367081572,1750651859556,-1000.0,0.00033149,7]
[367081573,1750651859566,-151.0,0.00033149,7]
[367081574,1750651859576,-9905.5980765,0.00033149,7]
[367081575,1750651859587,-1000.0,0.00033149,7]
[367081576,1750651859596,-151.0,0.00033149,7]
[367081577,1750651859605,-1000.0,0.00033149,7]
[367081578,1750651859615,-151.0,0.00033149,7]
[367081579,1750651859625,-4433.1840411,0.00033149,7]
[367081580,1750651859634,-500.0,0.00033149,7]
[367081581,1750651859643,-1000.0,0.00033149,7]
[367081582,1750651859653,-151.0,0.00033149,7]
[367081583,1750651859663,-668.65185757,0.00033149,7]
[367081584,1750651859673,-500.0,0.00033149,7]
[367081585,1750651859682,-1000.0,0.00033149,7]
[367081586,1750651859691,-693.3919763,0.00033149,7]
[367081587,1750651859701,-151.0,0.00033149,7]
[367081588,1750651859710,-500.0,0.00033149,7]
[367081589,1750651859720,-719.04747942,0.00033149,7]
[367081590,1750651859730,-151.0,0.00033149,7]
[367081591,1750651859744,-500.0,0.00033149,7]
[367081592,1750651859754,-500.0,0.00033149,7]
[367081593,1750651859764,-1000.0,0.00033149,7]
[367081594,1750651859774,-745.65223616,0.00033149,7]
[367081595,1750651859785,-151.0,0.00033149,7]
[367081596,1750651859795,-500.0,0.00033149,7]
[367081597,1750651859805,-500.0,0.00033149,7]
[367081598,1750651859815,-1000.0,0.00033149,7]
[367081599,1750651859825,-773.2413689,0.00033149,7]
[367081600,1750651859835,-151.0,0.00033149,7]
[367081601,1750651859845,-500.0,0.00033149,7]
[367081602,1750651859855,-500.0,0.00033149,7]
[367081603,1750651859865,-1000.0,0.00033149,7]
[367081604,1750651859875,-801.85129955,0.00033149,7]
[367081605,1750651859885,-151.0,0.00033149,7]
[367081606,1750651859895,-300.0,0.00033149,7]
[367081607,1750651859905,-500.0,0.00033149,7]
[367081608,1750651859915,-517.48883652,0.00033149,7]
[367081609,1750651859924,-1000.0,0.00033149,7]
[367081610,1750651859935,-831.51979763,0.00033149,7]
[367081611,1750651859945,-300.0,0.00033149,7]
[367081612,1750651859954,-500.0,0.00033149,7]
[367081613,1750651859964,-1000.0,0.00033149,7]
[367081614,1750651859974,-151.0,0.00033149,7]
[367081615,1750651859984,-300.0,0.00033149,7]
[367081616,1750651859993,-500.0,0.00033149,7]
[367081617,1750651860003,-237.2665589,0.00033149,7]
[367081618,1750651860013,-300.0,0.00033149,7]
[367081619,1750651860023,-500.0,0.00033149,7]
[367081620,1750651860033,-300.0,0.00033149,7]
[367081621,1750651860044,-300.0,0.00033149,7]
[367081622,1750651860055,-500.0,0.00033149,7]
[367081623,1750651860069,-300.0,0.00033149,7]
[367081624,1750651860079,-500.0,0.00033149,7]
[367081625,1750651860089,-500.0,0.00033149,7]
[367081626,1750651860098,-277.75468828,0.00033149,7]
[367081627,1750651860109,-151.0,0.00033149,7]
[367081628,1750651860119,-500.0,0.00033149,7]
[367081629,1750651860128,-156.587,0.00033149,7]
[367081630,1750651860139,-500.0,0.00033149,7]
[367081631,1750651860149,-162.380719,0.00033149,7]
[367081632,1750651860159,-500.0,0.00033149,7]
[367081633,1750651860169,-500.0,0.00033149,7]
[367081634,1750651860179,-151.0,0.00033149,7]
[367081635,1750651860189,-309.90014815,0.00033149,7]
[367081636,1750651860198,-500.0,0.00033149,7]
[367081637,1750651860208,-151.0,0.00033149,7]
[367081638,1750651860217,-151.0,0.00033149,7]
[367081639,1750651860227,-207.4,0.00033149,7]
[367081640,1750651860237,-151.0,0.00033149,7]
[367081641,1750651860246,-215.0738,0.00033149,7]
[367081642,1750651860255,-151.0,0.00033149,7]
[367081643,1750651860266,-223.0315306,0.00033149,7]
[367081644,1750651860275,-151.0,0.00033149,7]
[367081645,1750651860285,-231.28369723,0.00033149,7]
[367081646,1750651860297,-151.0,0.00033149,7]
[367081647,1750651860306,-1024.9,0.00033149,7]
[367081648,1750651860316,-239.84119403,0.00033149,7]
[367081649,1750651860326,-151.0,0.00033149,7]
[367081650,1750651860335,-248.71531821,0.00033149,7]
[367081651,1750651860345,-257.91778498,0.00033149,7]
[367081652,1750651860354,-500.0,0.00033149,7]
[367081653,1750651860364,-151.0,0.00033149,7]
[367081654,1750651860374,-151.0,0.00033149,7]
[367081655,1750651860385,-500.0,0.00033149,7]
[367081656,1750651860485,-267.46074303,0.00033149,7]
[367081657,1750651860495,-172.26075872,0.00033149,7]
[367081658,1750651860504,-500.0,0.00033149,7]
[367081659,1750651860513,-277.35679052,0.00033149,7]
[367081660,1750651860523,-500.0,0.00033149,7]
[367081661,1750651860532,-287.61899177,0.00033149,7]
[367081662,1750651860542,-500.0,0.00033149,7]
[367081663,1750651860553,-500.0,0.00033149,7]
[367081664,1750651860562,-298.26089446,0.00033149,7]
[367081665,1750651860571,-500.0,0.00033149,7]
[367081666,1750651860580,-309.29654756,0.00033149,7]
[367081667,1750651860590,-500.0,0.00033149,7]
[367081668,1750651860599,-320.74051982,0.00033149,7]
[367081669,1750651860609,-500.0,0.00033149,7]
[367081670,1750651860618,-332.60791905,0.00033149,7]
[367081671,1750651860628,-500.0,0.00033149,7]
[367081672,1750651860637,-344.91441206,0.00033149,7]
[367081673,1750651860646,-500.0,0.00033149,7]
[367081674,1750651860655,-500.0,0.00033149,7]
[367081675,1750651860665,-357.6762453,0.00033149,7]
[367081676,1750651860674,-187.002381,0.00033149,7]
[367081677,1750651860683,-370.91026638,0.00033149,7]
[367081678,1750651860692,-384.63394623,0.00033149,7]
[367081679,1750651860702,-551.35212703,0.00033149,7]
[367081680,1750651860711,-398.86540225,0.00033149,7]
[367081681,1750651860721,-187.002381,0.00033149,7]
[367081682,1750651860730,-490.0,0.00033149,7]
[367081683,1750651860739,-11195.34,0.00033149,7]
[367081684,1750651860749,-2231.51,0.00033149,7]
[367081685,1750651860758,-490.0,0.00033149,7]
[367081686,1750651860768,-500.0,0.00033149,7]
[367081687,1750651860777,-1833.12,0.00033149,7]
[367081688,1750651860787,-500.0,0.00033149,7]
[367081689,1750651860798,-500.0,0.00033149,7]
[367081690,1750651860807,-500.0,0.00033149,7]
[367081691,1750651860816,-1119.709815,0.00033149,7]
[367081692,1750651860826,-1176.24948,0.00033149,7]
[367081693,1750651860835,-1176.24948,0.00033149,7]
[367081694,1750651860844,-1119.709815,0.00033149,7]
[367081695,1750651860853,-563.26,0.00033149,7]
[367081696,1750651860863,-15822.78,0.00033149,7]
[367081697,1750651860872,-1916.86,0.00033149,7]
[367081698,1750651860882,-1974.2,0.00033149,7]
[367081699,1750651860891,-500.0,0.00033149,7]
[367081700,1750651860901,-500.0,0.00033149,7]
[367081701,1750651860910,-1544.69,0.00033149,7]
[367081702,1750651860920,-3124.09,0.00033149,7]
[367081703,1750651860930,-500.0,0.00033149,2]
[367081704,1750651860940,-500.0,0.00033149,2]
[367081705,1750651860951,-444.96710102,0.00033149,2]
[367081706,1750651860960,-1982.24,0.00033149,7]
[367081707,1750651860970,-155.2,0.00033149,2]
[367081708,1750651860979,-652.78658041,0.0003315,19]
[367081709,1750651860989,-551386.35807798,0.0003315,19]
[367081710,1750651860998,-871.45,0.0003315,7]
[367081711,1750651861008,-490.0,0.0003315,7]
[367081712,1750651861017,-490.0,0.0003315,7]
[367081713,1750651861027,-529.94,0.0003315,7]